[Event "Titled Tuesday Blitz July 25 Late 2023"]
[White "Donchenko, Alexander"]
[Black "Martinez Alcantara, Jose Eduardo"]
[WhiteFideId "24603295"]
[BlackFideId "3805662"]
[WhiteElo "2828"]
[BlackElo "3002"]
[Result "0-1"]
[Round "7"]
[TimeControl "180+2"]
[Date "2023.07.25"]
[WhiteClock "0:00:01"]
[BlackClock "0:00:16"]
[Board "14"]

1. Nf3 {[%clk 0:03:00]}  c5 {[%clk 0:02:53]} 2. c4 {[%clk 0:03:00]}  Nf6 {[%clk 0:02:52]} 3. Nc3 {[%clk 0:03:00]}  e6 {[%clk 0:02:53]} 4. g3 {[%clk 0:03:01]}  b6 {[%clk 0:02:53]} 5. Bg2 {[%clk 0:03:01]}  Bb7 {[%clk 0:02:53]} 6. O-O {[%clk 0:03:02]}  Be7 {[%clk 0:02:53]} 7. Re1 {[%clk 0:03:03]}  O-O {[%clk 0:02:53]} 8. e4 {[%clk 0:03:03]}  d6 {[%clk 0:02:50]} 9. d4 {[%clk 0:03:03]}  cxd4 {[%clk 0:02:51]} 10. Nxd4 {[%clk 0:03:04]}  Qc8 {[%clk 0:02:48]} 11. Be3 {[%clk 0:03:02]}  a6 {[%clk 0:02:48]} 12. Rc1 {[%clk 0:03:01]}  Nbd7 {[%clk 0:02:48]} 13. h3 {[%clk 0:02:58]}  Qc7 {[%clk 0:02:36]} 14. Nd5 {[%clk 0:02:56]}  exd5 {[%clk 0:02:27]} 15. cxd5 {[%clk 0:02:57]}  Qd8 {[%clk 0:02:28]} 16. Nc6 {[%clk 0:02:53]}  Bxc6 {[%clk 0:02:28]} 17. dxc6 {[%clk 0:02:54]}  Nc5 {[%clk 0:02:29]} 18. b4 {[%clk 0:02:21]}  Ne6 {[%clk 0:02:16]} 19. c7 {[%clk 0:01:26]}  Nxc7 {[%clk 0:02:03]} 20. e5 {[%clk 0:01:23]}  dxe5 {[%clk 0:01:58]} 21. Qxd8 {[%clk 0:01:18]}  Raxd8 {[%clk 0:01:55]} 22. Rxc7 {[%clk 0:01:16]}  Bxb4 {[%clk 0:01:53]} 23. Rb1 {[%clk 0:01:14]}  a5 {[%clk 0:01:19]} 24. Bxb6 {[%clk 0:00:51]}  Rd2 {[%clk 0:01:17]} 25. a3 {[%clk 0:00:44]}  Bxa3 {[%clk 0:01:17]} 26. Bxa5 {[%clk 0:00:44]}  Rb2 {[%clk 0:01:00]} 27. Re1 {[%clk 0:00:41]}  Bd6 {[%clk 0:00:44]} 28. Rc6 {[%clk 0:00:40]}  Bb8 {[%clk 0:00:45]} 29. Bc3 {[%clk 0:00:36]}  Rb5 {[%clk 0:00:44]} 30. Bf1 {[%clk 0:00:33]}  Rb7 {[%clk 0:00:32]} 31. Bxe5 {[%clk 0:00:32]}  Bxe5 {[%clk 0:00:33]} 32. Rxe5 {[%clk 0:00:32]}  Rfb8 {[%clk 0:00:32]} 33. Bc4 {[%clk 0:00:30]}  Kf8 {[%clk 0:00:30]} 34. Rec5 {[%clk 0:00:29]}  Ne8 {[%clk 0:00:26]} 35. Rc8 {[%clk 0:00:27]}  Rxc8 {[%clk 0:00:26]} 36. Rxc8 {[%clk 0:00:28]}  Ke7 {[%clk 0:00:26]} 37. Bd5 {[%clk 0:00:26]}  Ra7 {[%clk 0:00:23]} 38. Ra8 {[%clk 0:00:25]}  Rc7 {[%clk 0:00:23]} 39. Rb8 {[%clk 0:00:23]}  Nd6 {[%clk 0:00:23]} 40. Kg2 {[%clk 0:00:23]}  g6 {[%clk 0:00:24]} 41. Bf3 {[%clk 0:00:22]}  h5 {[%clk 0:00:23]} 42. h4 {[%clk 0:00:23]}  Kf6 {[%clk 0:00:22]} 43. Rb6 {[%clk 0:00:22]}  Rd7 {[%clk 0:00:22]} 44. Rc6 {[%clk 0:00:22]}  Kg7 {[%clk 0:00:22]} 45. Rb6 {[%clk 0:00:22]}  Nc4 {[%clk 0:00:21]} 46. Rb7 {[%clk 0:00:22]}  Rd6 {[%clk 0:00:19]} 47. Rc7 {[%clk 0:00:22]}  Ne5 {[%clk 0:00:18]} 48. Be4 {[%clk 0:00:22]}  Rf6 {[%clk 0:00:18]} 49. Bd5 {[%clk 0:00:21]}  Ng4 {[%clk 0:00:17]} 50. Rc2 {[%clk 0:00:20]}  Rd6 {[%clk 0:00:13]} 51. Bf3 {[%clk 0:00:20]}  Ne5 {[%clk 0:00:13]} 52. Be4 {[%clk 0:00:21]}  Rd4 {[%clk 0:00:14]} 53. Re2 {[%clk 0:00:20]}  Ng4 {[%clk 0:00:14]} 54. Bf3 {[%clk 0:00:20]}  Nh6 {[%clk 0:00:15]} 55. Re5 {[%clk 0:00:20]}  Rd2 {[%clk 0:00:14]} 56. Re2 {[%clk 0:00:19]}  Rd7 {[%clk 0:00:15]} 57. Rb2 {[%clk 0:00:18]}  Nf5 {[%clk 0:00:15]} 58. Rc2 {[%clk 0:00:18]}  Ra7 {[%clk 0:00:14]} 59. Rb2 {[%clk 0:00:18]}  Nd4 {[%clk 0:00:14]} 60. Be4 {[%clk 0:00:18]}  Re7 {[%clk 0:00:12]} 61. Bd5 {[%clk 0:00:19]}  Re5 {[%clk 0:00:11]} 62. Bf3 {[%clk 0:00:18]}  Rc5 {[%clk 0:00:10]} 63. Be4 {[%clk 0:00:18]}  Rc4 {[%clk 0:00:09]} 64. Bd5 {[%clk 0:00:18]}  Rc5 {[%clk 0:00:09]} 65. Be4 {[%clk 0:00:18]}  Nb5 {[%clk 0:00:08]} 66. Bd3 {[%clk 0:00:18]}  Nd6 {[%clk 0:00:07]} 67. Be2 {[%clk 0:00:18]}  Nf5 {[%clk 0:00:06]} 68. Bf3 {[%clk 0:00:18]}  Re5 {[%clk 0:00:06]} 69. Rd2 {[%clk 0:00:17]}  Kf6 {[%clk 0:00:06]} 70. Bc6 {[%clk 0:00:17]}  Rc5 {[%clk 0:00:06]} 71. Bf3 {[%clk 0:00:17]}  Ra5 {[%clk 0:00:06]} 72. Be4 {[%clk 0:00:17]}  Ng7 {[%clk 0:00:06]} 73. Rb2 {[%clk 0:00:17]}  Ne6 {[%clk 0:00:06]} 74. Bf3 {[%clk 0:00:17]}  Nd4 {[%clk 0:00:06]} 75. Be4 {[%clk 0:00:17]}  Ke5 {[%clk 0:00:06]} 76. Bf3 {[%clk 0:00:16]}  f5 {[%clk 0:00:06]} 77. Rb6 {[%clk 0:00:16]}  Ra3 {[%clk 0:00:05]} 78. Bb7 {[%clk 0:00:15]}  f4 {[%clk 0:00:04]} 79. gxf4+ {[%clk 0:00:13]}  Kxf4 {[%clk 0:00:05]} 80. Rxg6 {[%clk 0:00:13]}  Nf5 {[%clk 0:00:05]} 81. Rf6 {[%clk 0:00:09]}  Ke5 {[%clk 0:00:05]} 82. Rf8 {[%clk 0:00:08]}  Nxh4+ {[%clk 0:00:06]} 83. Kh2 {[%clk 0:00:09]}  Ng6 {[%clk 0:00:05]} 84. Rg8 {[%clk 0:00:08]}  Nf4 {[%clk 0:00:04]} 85. Re8+ {[%clk 0:00:08]}  Kf6 {[%clk 0:00:05]} 86. Rf8+ {[%clk 0:00:08]}  Kg5 {[%clk 0:00:05]} 87. Bc8 {[%clk 0:00:08]}  Ra5 {[%clk 0:00:03]} 88. Rg8+ {[%clk 0:00:07]}  Kh4 {[%clk 0:00:04]} 89. Rf8 {[%clk 0:00:07]}  Nd3 {[%clk 0:00:04]} 90. Rf3 {[%clk 0:00:07]}  Ne5 {[%clk 0:00:02]} 91. Rf4+ {[%clk 0:00:07]}  Kg5 {[%clk 0:00:03]} 92. Rf5+ {[%clk 0:00:07]}  Kg6 {[%clk 0:00:03]} 93. Kg2 {[%clk 0:00:07]}  Rc5 {[%clk 0:00:04]} 94. Be6 {[%clk 0:00:07]}  Kh6 {[%clk 0:00:04]} 95. Bc8 {[%clk 0:00:03]}  Kg7 {[%clk 0:00:03]} 96. Be6 {[%clk 0:00:03]}  Kg6 {[%clk 0:00:03]} 97. Bc8 {[%clk 0:00:03]}  h4 {[%clk 0:00:02]} 98. Be6 {[%clk 0:00:03]}  Kh6 {[%clk 0:00:02]} 99. Bc8 {[%clk 0:00:03]}  Kg7 {[%clk 0:00:03]} 100. Be6 {[%clk 0:00:03]}  Kg6 {[%clk 0:00:03]} 101. Bc8 {[%clk 0:00:04]}  h3+ {[%clk 0:00:04]} 102. Kxh3 {[%clk 0:00:04]}  Rc3+ {[%clk 0:00:04]} 103. Kg2 {[%clk 0:00:04]}  Nf7 {[%clk 0:00:05]} 104. Be6 {[%clk 0:00:02]}  Ng5 {[%clk 0:00:05]} 105. Re5 {[%clk 0:00:02]}  Kf6 {[%clk 0:00:05]} 106. Rf5+ {[%clk 0:00:02]}  Kg6 {[%clk 0:00:06]} 107. Re5 {[%clk 0:00:02]}  Rc1 {[%clk 0:00:06]} 108. Bg4 {[%clk 0:00:02]}  Kf6 {[%clk 0:00:07]} 109. Rf5+ {[%clk 0:00:02]}  Kg6 {[%clk 0:00:08]} 110. Re5 {[%clk 0:00:03]}  Rc4 {[%clk 0:00:08]} 111. f3 {[%clk 0:00:02]}  Kf6 {[%clk 0:00:09]} 112. Rf5+ {[%clk 0:00:03]}  Kg6 {[%clk 0:00:09]} 113. Kg3 {[%clk 0:00:03]}  Nh7 {[%clk 0:00:09]} 114. Rd5 {[%clk 0:00:03]}  Nf6 {[%clk 0:00:09]} 115. Rd6 {[%clk 0:00:04]}  Rc3 {[%clk 0:00:10]} 116. Re6 {[%clk 0:00:04]}  Kf7 {[%clk 0:00:10]} 117. Re5 {[%clk 0:00:04]}  Ra3 {[%clk 0:00:09]} 118. Rf5 {[%clk 0:00:04]}  Kg6 {[%clk 0:00:10]} 119. Re5 {[%clk 0:00:05]}  Rc3 {[%clk 0:00:09]} 120. Re6 {[%clk 0:00:05]}  Kg5 {[%clk 0:00:09]} 121. Re5+ {[%clk 0:00:05]}  Kh6 {[%clk 0:00:10]} 122. Re6 {[%clk 0:00:06]}  Kg7 {[%clk 0:00:10]} 123. Re5 {[%clk 0:00:06]}  Nh7 {[%clk 0:00:10]} 124. Rf5 {[%clk 0:00:06]}  Kg6 {[%clk 0:00:10]} 125. Re5 {[%clk 0:00:07]}  Ng5 {[%clk 0:00:11]} 126. Rf5 {[%clk 0:00:06]}  Ne4+ {[%clk 0:00:08]} 127. Kh4 {[%clk 0:00:07]}  Nd6 {[%clk 0:00:06]} 128. Rg5+ {[%clk 0:00:07]}  Kf6 {[%clk 0:00:06]} 129. Ra5 {[%clk 0:00:06]}  Rc6 {[%clk 0:00:06]} 130. Kg3 {[%clk 0:00:06]}  Rb6 {[%clk 0:00:07]} 131. Rd5 {[%clk 0:00:05]}  Nf7 {[%clk 0:00:06]} 132. Rc5 {[%clk 0:00:05]}  Ne5 {[%clk 0:00:07]} 133. Rd5 {[%clk 0:00:05]}  Rb1 {[%clk 0:00:07]} 134. Rd4 {[%clk 0:00:05]}  Rg1+ {[%clk 0:00:07]} 135. Kf2 {[%clk 0:00:05]}  Ra1 {[%clk 0:00:08]} 136. Rf4+ {[%clk 0:00:06]}  Kg6 {[%clk 0:00:07]} 137. Re4 {[%clk 0:00:06]}  Nf7 {[%clk 0:00:07]} 138. Kg3 {[%clk 0:00:06]}  Kf6 {[%clk 0:00:07]} 139. Rf4+ {[%clk 0:00:06]}  Kg7 {[%clk 0:00:08]} 140. Rc4 {[%clk 0:00:06]}  Rg1+ {[%clk 0:00:08]} 141. Kf2 {[%clk 0:00:06]}  Rb1 {[%clk 0:00:09]} 142. Rc7 {[%clk 0:00:06]}  Kf6 {[%clk 0:00:10]} 143. Rc6+ {[%clk 0:00:07]}  Kg5 {[%clk 0:00:10]} 144. Rc5+ {[%clk 0:00:07]}  Kh6 {[%clk 0:00:11]} 145. Rc6+ {[%clk 0:00:07]}  Kg7 {[%clk 0:00:11]} 146. Rc7 {[%clk 0:00:07]}  Rb2+ {[%clk 0:00:11]} 147. Kg3 {[%clk 0:00:07]}  Kf6 {[%clk 0:00:12]} 148. Rc6+ {[%clk 0:00:06]}  Ke7 {[%clk 0:00:13]} 149. f4 {[%clk 0:00:06]}  Nd6 {[%clk 0:00:13]} 150. Rc7+ {[%clk 0:00:06]}  Kf6 {[%clk 0:00:13]} 151. Bf3 {[%clk 0:00:05]}  Nf5+ {[%clk 0:00:13]} 152. Kg4 {[%clk 0:00:06]}  Nd4 {[%clk 0:00:12]} 153. Rd7 {[%clk 0:00:05]}  Rb4 {[%clk 0:00:13]} 154. Be4 {[%clk 0:00:05]}  Ne6 {[%clk 0:00:13]} 155. Kf3 {[%clk 0:00:03]}  Nc5 {[%clk 0:00:13]} 156. Rd6+ {[%clk 0:00:03]}  Ke7 {[%clk 0:00:14]} 157. Rd5 {[%clk 0:00:03]}  Rb3+ {[%clk 0:00:14]} 158. Bd3 {[%clk 0:00:02]}  Nxd3 {[%clk 0:00:14]} 159. Rd4 {[%clk 0:00:02]}  Nb4+ {[%clk 0:00:14]} 160. Kg4 {[%clk 0:00:02]}  Ke6 {[%clk 0:00:14]} 161. Re4+ {[%clk 0:00:02]}  Kf6 {[%clk 0:00:15]} 162. Rd4 {[%clk 0:00:03]}  Ke7 {[%clk 0:00:14]} 163. Re4+ {[%clk 0:00:03]}  Kf7 {[%clk 0:00:14]} 164. Rd4 {[%clk 0:00:04]}  Nc6 {[%clk 0:00:15]} 165. Rd7+ {[%clk 0:00:04]}  Ne7 {[%clk 0:00:16]} 166. Rd6 {[%clk 0:00:04]}  Rb1 {[%clk 0:00:15]} 167. Ra6 {[%clk 0:00:04]}  Rg1+ {[%clk 0:00:16]} 168. Kf3 {[%clk 0:00:05]}  Rb1 {[%clk 0:00:17]} 169. Kg4 {[%clk 0:00:05]}  Rb5 {[%clk 0:00:17]} 170. Kf3 {[%clk 0:00:05]}  Nd5 {[%clk 0:00:17]} 171. Rd6 {[%clk 0:00:04]}  Ke7 {[%clk 0:00:17]} 172. Rh6 {[%clk 0:00:05]}  Nf6 {[%clk 0:00:17]} 173. Rh8 {[%clk 0:00:04]}  Rb3+ {[%clk 0:00:18]} 174. Kf2 {[%clk 0:00:05]}  Ke6 {[%clk 0:00:18]} 175. Rd8 {[%clk 0:00:04]}  Rb2+ {[%clk 0:00:18]} 176. Ke3 {[%clk 0:00:04]}  Rb3+ {[%clk 0:00:19]} 177. Rd3 {[%clk 0:00:03]}  Rb4 {[%clk 0:00:17]} 178. Rd4 {[%clk 0:00:03]}  Rb1 {[%clk 0:00:18]} 179. Kd2 {[%clk 0:00:04]}  Kf5 {[%clk 0:00:18]} 180. Kc3 {[%clk 0:00:04]}  Rb8 {[%clk 0:00:19]} 181. Kc4 {[%clk 0:00:04]}  Rc8+ {[%clk 0:00:19]} 182. Kd3 {[%clk 0:00:05]}  Ng4 {[%clk 0:00:18]} 183. Rd5+ {[%clk 0:00:05]}  Kxf4 {[%clk 0:00:19]} 184. Rd4+ {[%clk 0:00:05]}  Kf3 {[%clk 0:00:19]} 185. Rd6 {[%clk 0:00:05]}  Ra8 {[%clk 0:00:18]} 186. Kd4 {[%clk 0:00:04]}  Kf4 {[%clk 0:00:19]} 187. Rd7 {[%clk 0:00:04]}  Nf6 {[%clk 0:00:18]} 188. Rf7 {[%clk 0:00:04]}  Ra6 {[%clk 0:00:19]} 189. Kc5 {[%clk 0:00:04]}  Ke5 {[%clk 0:00:20]} 190. Re7+ {[%clk 0:00:04]}  Kf5 {[%clk 0:00:20]} 191. Re1 {[%clk 0:00:05]}  Ne4+ {[%clk 0:00:20]} 192. Kd5 {[%clk 0:00:05]}  Rd6+ {[%clk 0:00:20]} 193. Kc4 {[%clk 0:00:05]}  Rd8 {[%clk 0:00:21]} 194. Rf1+ {[%clk 0:00:05]}  Ke5 {[%clk 0:00:21]} 195. Re1 {[%clk 0:00:05]}  Rc8+ {[%clk 0:00:22]} 196. Kb5 {[%clk 0:00:05]}  Rc2 {[%clk 0:00:21]} 197. Rh1 {[%clk 0:00:05]}  Kd5 {[%clk 0:00:20]} 198. Rh5+ {[%clk 0:00:05]}  Kd4 {[%clk 0:00:20]} 199. Kb6 {[%clk 0:00:06]}  Rc8 {[%clk 0:00:19]} 200. Kb5 {[%clk 0:00:05]}  Nd6+ {[%clk 0:00:18]} 201. Kb6 {[%clk 0:00:06]}  Nc4+ {[%clk 0:00:19]} 202. Kb5 {[%clk 0:00:06]}  Ne5 {[%clk 0:00:18]} 203. Rh4+ {[%clk 0:00:04]}  Kd5 {[%clk 0:00:19]} 204. Kb4 {[%clk 0:00:04]}  Nf3 {[%clk 0:00:19]} 205. Rh5+ {[%clk 0:00:04]}  Kd4 {[%clk 0:00:20]} 206. Kb5 {[%clk 0:00:04]}  Rc1 {[%clk 0:00:20]} 207. Kb6 {[%clk 0:00:03]}  Ne5 {[%clk 0:00:20]} 208. Rh4+ {[%clk 0:00:03]}  Kd5 {[%clk 0:00:20]} 209. Kb5 {[%clk 0:00:04]}  Rc5+ {[%clk 0:00:15]} 210. Kb4 {[%clk 0:00:04]}  Nc6+ {[%clk 0:00:16]} 211. Kb3 {[%clk 0:00:04]}  Nd4+ {[%clk 0:00:16]} 212. Kb2 {[%clk 0:00:04]}  Kc4 {[%clk 0:00:16]} 213. Kc1 {[%clk 0:00:01]}  Kd3+ {[%clk 0:00:16]} 214. Kd1 {[%clk 0:00:02]}  Nf5 {[%clk 0:00:16]} 215. Rh3+ {[%clk 0:00:01]}  Ne3+ {[%clk 0:00:17]} 216. Ke1 {[%clk 0:00:01]}  Rc2 {[%clk 0:00:16]} 217. Rh2 {[%clk 0:00:02]}  Rc1+ {[%clk 0:00:16]} 218. Kf2 {[%clk 0:00:03]}  Ng4+ {[%clk 0:00:16]} 219. Kg3 {[%clk 0:00:01]}  Nxh2 {[%clk 0:00:16]} 0-1


[Site "https://www.chess.com"]

[Event "Titled Tuesday Blitz July 25 Late 2023"]
[White "Santos Latasa, Jaime"]
[Black "Alex_Sahakyan2006"]
[WhiteFideId "2293307"]
[WhiteElo "2997"]
[BlackElo "2739"]
[Result "1-0"]
[Round "7"]
[TimeControl "180+2"]
[Date "2023.07.25"]
[WhiteClock "0:00:33"]
[BlackClock "0:00:00"]
[Board "15"]

1. Nf3 {[%clk 0:03:00]}  d5 {[%clk 0:02:51]} 2. e3 {[%clk 0:03:00]}  Nf6 {[%clk 0:02:48]} 3. c4 {[%clk 0:02:59]}  c6 {[%clk 0:02:44]} 4. Nc3 {[%clk 0:02:55]}  e6 {[%clk 0:02:36]} 5. b3 {[%clk 0:02:54]}  Nbd7 {[%clk 0:02:36]} 6. Qc2 {[%clk 0:02:52]}  Bd6 {[%clk 0:02:36]} 7. Bb2 {[%clk 0:02:51]}  b6 {[%clk 0:02:33]} 8. cxd5 {[%clk 0:02:50]}  exd5 {[%clk 0:02:33]} 9. Nd4 {[%clk 0:02:49]}  Nb8 {[%clk 0:02:20]} 10. Nf5 {[%clk 0:02:47]}  Bxf5 {[%clk 0:02:19]} 11. Qxf5 {[%clk 0:02:47]}  Nbd7 {[%clk 0:02:06]} 12. g3 {[%clk 0:02:44]}  Qe7 {[%clk 0:02:02]} 13. a3 {[%clk 0:02:32]}  O-O {[%clk 0:01:36]} 14. Bg2 {[%clk 0:02:31]}  Qe5 {[%clk 0:01:20]} 15. Qxe5 {[%clk 0:02:27]}  Nxe5 {[%clk 0:01:16]} 16. Ke2 {[%clk 0:02:25]}  Rfe8 {[%clk 0:01:15]} 17. Rac1 {[%clk 0:02:23]}  Rad8 {[%clk 0:00:55]} 18. h3 {[%clk 0:02:10]}  d4 {[%clk 0:00:51]} 19. Ne4 {[%clk 0:02:06]}  Nxe4 {[%clk 0:00:50]} 20. Bxe4 {[%clk 0:02:07]}  c5 {[%clk 0:00:46]} 21. Bd5 {[%clk 0:01:51]}  Be7 {[%clk 0:00:40]} 22. Be4 {[%clk 0:01:42]}  Bf6 {[%clk 0:00:38]} 23. Ba1 {[%clk 0:01:36]}  dxe3 {[%clk 0:00:33]} 24. dxe3 {[%clk 0:01:36]}  Nd7 {[%clk 0:00:29]} 25. Bc6 {[%clk 0:01:32]}  Bxa1 {[%clk 0:00:29]} 26. Rxa1 {[%clk 0:01:32]}  Re6 {[%clk 0:00:29]} 27. Bb5 {[%clk 0:01:32]}  Nf6 {[%clk 0:00:29]} 28. Rhd1 {[%clk 0:01:30]}  Red6 {[%clk 0:00:30]} 29. Rxd6 {[%clk 0:01:30]}  Rxd6 {[%clk 0:00:31]} 30. Bd3 {[%clk 0:01:25]}  Nd5 {[%clk 0:00:22]} 31. Rc1 {[%clk 0:01:24]}  g5 {[%clk 0:00:18]} 32. Bc4 {[%clk 0:01:13]}  Ne7 {[%clk 0:00:15]} 33. b4 {[%clk 0:01:08]}  cxb4 {[%clk 0:00:14]} 34. axb4 {[%clk 0:01:09]}  Rc6 {[%clk 0:00:13]} 35. Kd2 {[%clk 0:01:08]}  Kg7 {[%clk 0:00:13]} 36. Rc3 {[%clk 0:01:02]}  a5 {[%clk 0:00:11]} 37. b5 {[%clk 0:00:51]}  Rc5 {[%clk 0:00:10]} 38. Kd3 {[%clk 0:00:51]}  Nd5 {[%clk 0:00:07]} 39. Rc1 {[%clk 0:00:51]}  Nc7 {[%clk 0:00:05]} 40. Rb1 {[%clk 0:00:50]}  Kf6 {[%clk 0:00:05]} 41. f4 {[%clk 0:00:48]}  gxf4 {[%clk 0:00:05]} 42. gxf4 {[%clk 0:00:49]}  Rh5 {[%clk 0:00:05]} 43. Kd4 {[%clk 0:00:45]}  Rxh3 {[%clk 0:00:04]} 44. e4 {[%clk 0:00:44]}  Rh5 {[%clk 0:00:02]} 45. e5+ {[%clk 0:00:41]}  Ke7 {[%clk 0:00:03]} 46. Rc1 {[%clk 0:00:37]}  Rh4 {[%clk 0:00:03]} 47. Ke4 {[%clk 0:00:36]}  f6 {[%clk 0:00:01]} 48. Be2 {[%clk 0:00:34]}  Ne6 {[%clk 0:00:02]} 49. exf6+ {[%clk 0:00:32]}  Kxf6 {[%clk 0:00:03]} 50. Rc6 {[%clk 0:00:32]}  Rxf4+ {[%clk 0:00:03]} 51. Ke3 {[%clk 0:00:33]}  Rb4 {[%clk 0:00:02]} 52. Bc4 {[%clk 0:00:32]}  Rxc4 {[%clk 0:00:02]} 53. Rxc4 {[%clk 0:00:33]}  Nc5 {[%clk 0:00:00]} 54. Rxc5 {[%clk 0:00:33]} 1-0


[Site "https://www.chess.com"]

[Event "Titled Tuesday Blitz July 25 Late 2023"]
[White "Firouzja, Alireza"]
[Black "Jaracz, Pawel"]
[WhiteFideId "12573981"]
[BlackFideId "1102222"]
[WhiteElo "3095"]
[BlackElo "2710"]
[Result "0-1"]
[Round "7"]
[TimeControl "180+2"]
[Date "2023.07.25"]
[WhiteClock "0:00:04"]
[BlackClock "0:00:09"]
[Board "17"]

1. d4 {[%clk 0:03:00]}  Nf6 {[%clk 0:02:54]} 2. Bg5 {[%clk 0:03:01]}  Ne4 {[%clk 0:02:51]} 3. Bf4 {[%clk 0:03:00]}  e6 {[%clk 0:02:50]} 4. f3 {[%clk 0:02:59]}  Nf6 {[%clk 0:02:50]} 5. e4 {[%clk 0:02:59]}  d5 {[%clk 0:02:50]} 6. Nc3 {[%clk 0:03:00]}  Be7 {[%clk 0:02:49]} 7. Bd3 {[%clk 0:03:00]}  O-O {[%clk 0:02:44]} 8. Nge2 {[%clk 0:02:59]}  c5 {[%clk 0:02:43]} 9. dxc5 {[%clk 0:02:58]}  Bxc5 {[%clk 0:02:27]} 10. exd5 {[%clk 0:02:53]}  exd5 {[%clk 0:02:27]} 11. Bg5 {[%clk 0:02:46]}  Nc6 {[%clk 0:02:18]} 12. Nxd5 {[%clk 0:02:36]}  Qxd5 {[%clk 0:02:10]} 13. Bxf6 {[%clk 0:02:36]}  Qe6 {[%clk 0:02:02]} 14. Bc3 {[%clk 0:02:06]}  Nb4 {[%clk 0:01:47]} 15. Be4 {[%clk 0:01:43]}  f5 {[%clk 0:01:42]} 16. Bd3 {[%clk 0:01:18]}  Rd8 {[%clk 0:01:26]} 17. Bxb4 {[%clk 0:01:05]}  Bxb4+ {[%clk 0:01:26]} 18. c3 {[%clk 0:01:05]}  Bc5 {[%clk 0:01:22]} 19. Qc2 {[%clk 0:01:05]}  Qe3 {[%clk 0:01:16]} 20. Bc4+ {[%clk 0:01:04]}  Kh8 {[%clk 0:01:16]} 21. Rf1 {[%clk 0:01:03]}  f4 {[%clk 0:00:56]} 22. Rd1 {[%clk 0:00:55]}  Rxd1+ {[%clk 0:00:34]} 23. Qxd1 {[%clk 0:00:49]}  Bf5 {[%clk 0:00:33]} 24. Qd2 {[%clk 0:00:39]}  Qe7 {[%clk 0:00:30]} 25. Qxf4 {[%clk 0:00:37]}  Bg6 {[%clk 0:00:22]} 26. Bd5 {[%clk 0:00:27]}  Be3 {[%clk 0:00:19]} 27. Qg4 {[%clk 0:00:19]}  Rd8 {[%clk 0:00:14]} 28. Be4 {[%clk 0:00:15]}  Qd6 {[%clk 0:00:14]} 29. Nd4 {[%clk 0:00:14]}  Bxd4 {[%clk 0:00:13]} 30. cxd4 {[%clk 0:00:11]}  Qxd4 {[%clk 0:00:13]} 31. Qf4 {[%clk 0:00:11]}  Re8 {[%clk 0:00:11]} 32. Rf2 {[%clk 0:00:07]}  Bxe4 {[%clk 0:00:10]} 33. Re2 {[%clk 0:00:08]}  Qg1+ {[%clk 0:00:09]} 34. Kd2 {[%clk 0:00:06]}  Rd8+ {[%clk 0:00:09]} 35. Kc3 {[%clk 0:00:06]}  Qd4+ {[%clk 0:00:09]} 36. Kb3 {[%clk 0:00:04]}  Bd5+ {[%clk 0:00:09]} 0-1


[Site "https://www.chess.com"]

[Event "Titled Tuesday Blitz July 25 Late 2023"]
[White "Ashraf, Artin"]
[Black "Kramnik, Vladimir"]
[WhiteFideId "22514805"]
[BlackFideId "4101588"]
[WhiteElo "2844"]
[BlackElo "2997"]
[Result "1/2-1/2"]
[Round "7"]
[TimeControl "180+2"]
[Date "2023.07.25"]
[WhiteClock "0:00:09"]
[BlackClock "0:00:04"]
[Board "18"]

1. g3 {[%clk 0:02:56]}  c5 {[%clk 0:02:57]} 2. Bg2 {[%clk 0:02:56]}  g6 {[%clk 0:02:55]} 3. Nf3 {[%clk 0:02:56]}  Bg7 {[%clk 0:02:54]} 4. c3 {[%clk 0:02:55]}  e5 {[%clk 0:02:53]} 5. d3 {[%clk 0:02:48]}  Nc6 {[%clk 0:02:52]} 6. O-O {[%clk 0:02:48]}  Nge7 {[%clk 0:02:52]} 7. e4 {[%clk 0:02:46]}  O-O {[%clk 0:02:51]} 8. a3 {[%clk 0:02:46]}  d6 {[%clk 0:02:37]} 9. b4 {[%clk 0:02:43]}  a6 {[%clk 0:02:35]} 10. Nbd2 {[%clk 0:02:37]}  Be6 {[%clk 0:02:26]} 11. Qe2 {[%clk 0:02:35]}  h6 {[%clk 0:02:25]} 12. Nb1 {[%clk 0:02:28]}  f5 {[%clk 0:02:17]} 13. Nbd2 {[%clk 0:02:26]}  f4 {[%clk 0:02:12]} 14. Rb1 {[%clk 0:02:25]}  b5 {[%clk 0:02:02]} 15. d4 {[%clk 0:02:24]}  exd4 {[%clk 0:01:46]} 16. cxd4 {[%clk 0:02:23]}  Nxd4 {[%clk 0:01:47]} 17. Nxd4 {[%clk 0:02:22]}  Bxd4 {[%clk 0:01:47]} 18. Nf3 {[%clk 0:02:09]}  Bc4 {[%clk 0:01:44]} 19. Qd1 {[%clk 0:02:06]}  Bxf1 {[%clk 0:01:43]} 20. Nxd4 {[%clk 0:02:06]}  Bxg2 {[%clk 0:01:29]} 21. Ne6 {[%clk 0:02:05]}  Qd7 {[%clk 0:01:29]} 22. Nxf8 {[%clk 0:02:04]}  Qh3 {[%clk 0:01:10]} 23. Nxg6 {[%clk 0:01:48]}  Bxe4 {[%clk 0:00:48]} 24. Nxe7+ {[%clk 0:01:46]}  Kf7 {[%clk 0:00:49]} 25. f3 {[%clk 0:01:16]}  Bxb1 {[%clk 0:00:48]} 26. Bxf4 {[%clk 0:00:55]}  Qe6 {[%clk 0:00:44]} 27. Qxb1 {[%clk 0:00:55]}  Kxe7 {[%clk 0:00:15]} 28. Qh7+ {[%clk 0:00:52]}  Kf8 {[%clk 0:00:10]} 29. Bxh6+ {[%clk 0:00:27]}  Ke8 {[%clk 0:00:10]} 30. Qh8+ {[%clk 0:00:27]}  Kd7 {[%clk 0:00:09]} 31. Qxa8 {[%clk 0:00:27]}  Qxh6 {[%clk 0:00:09]} 32. Qb7+ {[%clk 0:00:19]}  Ke6 {[%clk 0:00:09]} 33. Qe4+ {[%clk 0:00:20]}  Kd7 {[%clk 0:00:08]} 34. f4 {[%clk 0:00:20]}  c4 {[%clk 0:00:07]} 35. g4 {[%clk 0:00:18]}  Qh4 {[%clk 0:00:06]} 36. g5 {[%clk 0:00:17]}  Qg4+ {[%clk 0:00:05]} 37. Kf2 {[%clk 0:00:17]}  Qh4+ {[%clk 0:00:05]} 38. Kg2 {[%clk 0:00:15]}  Qg4+ {[%clk 0:00:05]} 39. Kf2 {[%clk 0:00:16]}  Qh3 {[%clk 0:00:05]} 40. Qb7+ {[%clk 0:00:12]}  Kd8 {[%clk 0:00:05]} 41. Qb8+ {[%clk 0:00:12]}  Ke7 {[%clk 0:00:06]} 42. Qc7+ {[%clk 0:00:12]}  Ke8 {[%clk 0:00:06]} 43. Qc6+ {[%clk 0:00:12]}  Ke7 {[%clk 0:00:06]} 44. Qb7+ {[%clk 0:00:11]}  Kd8 {[%clk 0:00:05]} 45. Qa8+ {[%clk 0:00:09]}  Kd7 {[%clk 0:00:05]} 46. Qa7+ {[%clk 0:00:08]}  Kd8 {[%clk 0:00:04]} 47. Qb6+ {[%clk 0:00:08]}  Kd7 {[%clk 0:00:04]} 48. Qb7+ {[%clk 0:00:09]}  Kd8 {[%clk 0:00:04]} 1/2-1/2


[Site "https://www.chess.com"]

[Event "Titled Tuesday Blitz July 25 Late 2023"]
[White "Sargsyan, Shant"]
[Black "Panesar Vedant"]
[WhiteFideId "13306766"]
[BlackFideId "35033018"]
[WhiteElo "2984"]
[BlackElo "2710"]
[Result "1-0"]
[Round "7"]
[TimeControl "180+2"]
[Date "2023.07.25"]
[WhiteClock "0:02:19"]
[BlackClock "0:01:50"]
[Board "19"]

1. c4 {[%clk 0:03:00]}  Nf6 {[%clk 0:02:59]} 2. g3 {[%clk 0:03:01]}  e6 {[%clk 0:02:59]} 3. Bg2 {[%clk 0:03:02]}  d5 {[%clk 0:02:59]} 4. b3 {[%clk 0:03:02]}  d4 {[%clk 0:02:55]} 5. Nf3 {[%clk 0:03:01]}  Nc6 {[%clk 0:02:55]} 6. O-O {[%clk 0:03:00]}  Bc5 {[%clk 0:02:54]} 7. d3 {[%clk 0:02:58]}  O-O {[%clk 0:02:53]} 8. Bg5 {[%clk 0:02:59]}  h6 {[%clk 0:02:54]} 9. Bxf6 {[%clk 0:02:59]}  Qxf6 {[%clk 0:02:55]} 10. Nbd2 {[%clk 0:03:00]}  Qd8 {[%clk 0:02:51]} 11. a3 {[%clk 0:02:58]}  a5 {[%clk 0:02:51]} 12. Qc2 {[%clk 0:02:58]}  e5 {[%clk 0:02:50]} 13. Qb2 {[%clk 0:02:58]}  Bg4 {[%clk 0:02:46]} 14. Ne4 {[%clk 0:02:47]}  Be7 {[%clk 0:02:42]} 15. h3 {[%clk 0:02:47]}  Be6 {[%clk 0:02:35]} 16. Ned2 {[%clk 0:02:38]}  Qd7 {[%clk 0:02:34]} 17. Kh2 {[%clk 0:02:38]}  f5 {[%clk 0:02:34]} 18. Ne1 {[%clk 0:02:35]}  Bf6 {[%clk 0:02:31]} 19. Nc2 {[%clk 0:02:35]}  e4 {[%clk 0:02:30]} 20. b4 {[%clk 0:02:35]}  Ne5 {[%clk 0:02:27]} 21. Ne1 {[%clk 0:02:30]}  e3 {[%clk 0:02:19]} 22. Ndf3 {[%clk 0:02:29]}  f4 {[%clk 0:02:16]} 23. g4 {[%clk 0:02:22]}  Nxf3+ {[%clk 0:01:59]} 24. Nxf3 {[%clk 0:02:22]}  Bh4 {[%clk 0:01:50]} 25. Nxh4 {[%clk 0:02:19]} 1-0


[Site "https://www.chess.com"]